bitfinex/quotes_SOLUSD_20250425
["timestamp","ask_amount","ask_price","bid_price","bid_amount"]
[1745583570083,14.52,155.78,155.74,0.093]
[1745583570303,23.22508378,155.76,155.74,0.093]
[1745583570468,23.22508378,155.75,155.74,0.093]
[1745583571557,48.10133264,155.75,155.74,0.093]
[1745583571781,18.64964886,155.74,155.71,0.03]
[1745583571971,23.22508378,155.72,155.71,0.03]
[1745583572274,37.74508378,155.72,155.71,0.03]
[1745583574185,18.64964886,155.71,155.69,0.063]
[1745583574487,23.22508378,155.7,155.69,0.063]
[1745583576051,42.01689421,155.7,155.69,0.063]
[1745583576254,65.24197799,155.7,155.69,0.063]
[1745583577262,65.24197799,155.7,155.68,0.03]
[1745583577477,46.45016756,155.69,155.68,0.03]
[1745583578057,23.22508378,155.69,155.68,0.03]
[1745583579462,42.01689421,155.69,155.68,0.03]
[1745583579765,65.24197799,155.69,155.68,0.03]
[1745583579991,42.01689421,155.69,155.68,0.03]
[1745583581560,65.24197799,155.69,155.68,0.03]
[1745583582599,42.01689421,155.69,155.68,0.03]
[1745583583094,18.79181043,155.69,155.62,22.84508378]
[1745583583289,14.53292795,155.66,155.62,14.53292795]
[1745583583596,14.53292795,155.64,155.61,0.03]
[1745583584162,14.53292795,155.63,155.61,0.03]
[1745583584365,18.79181043,155.65,155.61,0.03]
[1745583584366,14.53292795,155.62,155.61,0.03]
[1745583585493,33.32473838,155.62,155.61,0.03]
[1745583585792,49.03986864,155.62,155.61,0.03]
[1745583585995,47.85766633,155.61,155.6,0.063]
[1745583586168,6.323,155.6,155.51,0.8700288]
[1745583586479,47.85766633,155.52,155.51,0.8700288]
[1745583586868,25.11481043,155.51,155.41,9.67840441]
[1745583587103,14.53292795,155.42,155.41,9.67840441]
[1745583587283,37.73193891,155.42,155.41,9.67840441]
[1745583588290,18.79181043,155.46,155.41,9.67840441]
[1745583588291,14.42,155.44,155.41,9.67840441]
[1745583588599,23.33193891,155.42,155.41,9.67840441]
[1745583588786,23.33193891,155.43,155.41,9.67840441]
[1745583588969,200.46,155.49,155.41,39.44475457]
[1745583589175,23.33193891,155.43,155.41,9.67840441]
[1745583589501,19.97401274,155.49,155.41,39.44483873]
[1745583589869,23.33193891,155.45,155.41,39.44483873]
[1745583590176,19.97401274,155.49,155.41,39.44483873]
[1745583590177,1.18220231,155.49,155.44,23.33193891]
[1745583590371,14.42,155.5,155.47,23.33193891]
[1745583590577,14.42,155.5,155.48,23.33193891]
[1745583590781,14.42,155.5,155.47,23.33193891]
[1745583591178,14.42,155.5,155.48,23.33193891]
[1745583591377,14.42,155.5,155.47,23.33193891]
[1745583591998,14.42,155.5,155.48,0.99644516]
[1745583593001,39.85514667,155.54,155.49,23.33193891]
[1745583593181,63.18708558,155.54,155.49,23.33193891]
[1745583593601,39.85514667,155.54,155.5,23.33193891]
[1745583593767,39.85514667,155.54,155.52,23.33193891]
[1745583593971,39.85514667,155.54,155.49,26.0]
[1745583594202,39.85514667,155.54,155.52,23.33193891]
[1745583594775,39.85514667,155.54,155.53,23.33193891]
[1745583595598,39.85514667,155.54,155.53,29.76156663]
[1745583595983,39.85514667,155.54,155.53,6.42962772]
[1745583596186,39.85514667,155.54,155.53,29.76156663]
[1745583596695,39.85514667,155.54,155.53,6.42962772]
[1745583596889,77.60708558,155.54,155.48,29.7636343]
[1745583597091,23.33193891,155.53,155.49,23.33193891]
[1745583597392,77.60708558,155.54,155.49,23.33193891]
[1745583597598,77.60708558,155.54,155.5,6.43086816]
[1745583597903,77.60708558,155.54,155.5,29.76280707]
[1745583598096,77.60708558,155.54,155.5,6.43086816]
[1745583598396,14.42,155.54,155.45,6.43293663]
[1745583598601,23.33193891,155.51,155.46,23.33193891]
[1745583598800,23.33193891,155.51,155.47,23.33193891]
[1745583599207,23.33193891,155.51,155.45,6.43293663]
[1745583599407,23.33193891,155.5,155.46,23.33193891]
[1745583599701,23.33193891,155.5,155.47,6.43210908]
[1745583600197,23.33193891,155.52,155.48,23.33193891]
[1745583600379,23.33193891,155.53,155.48,23.33193891]
[1745583600570,23.33193891,155.52,155.48,23.33193891]
[1745583601913,23.33193891,155.52,155.49,6.43128175]
[1745583602295,23.33193891,155.51,155.49,6.43128175]
[1745583603902,37.75193891,155.54,155.5,23.33193891]
[1745583604298,14.42,155.54,155.5,23.33193891]
[1745583604498,48.15098777,155.6,155.53,23.33193891]
[1745583604499,14.42,155.58,155.53,23.33193891]
[1745583604824,23.33193891,155.56,155.52,23.33193891]
[1745583605307,23.33193891,155.56,155.49,41.15913499]
[1745583605308,23.33193891,155.55,155.5,23.33193891]
[1745583605499,23.33193891,155.54,155.5,23.33193891]
[1745583605700,23.33193891,155.54,155.49,45.84142504]
[1745583605881,23.33193891,155.54,155.49,22.50948613]
[1745583606205,23.33193891,155.51,155.48,6.43161018]
[1745583606414,23.33193891,155.5,155.48,6.43161018]
[1745583607105,23.33193891,155.49,155.43,23.33193891]
[1745583607286,37.75193891,155.52,155.42,39.41648473]
[1745583607287,23.33193891,155.46,155.42,39.41648473]
[1745583607918,23.33193891,155.46,155.43,6.43376439]
[1745583609816,23.33193891,155.45,155.42,6.43417835]
[1745583610344,32.4891,155.51,155.42,6.43417835]
[1745583610524,23.33193891,155.45,155.42,6.43417835]
[1745583610882,23.33193891,155.43,155.41,0.03]
[1745583611286,23.33193891,155.42,155.41,0.03]
[1745583611897,23.47410048,155.42,155.41,0.03]
[1745583612092,48.25674934,155.42,155.41,0.03]
[1745583612729,0.14216157,155.4,155.32,0.03]
[1745583612896,23.33193891,155.33,155.32,0.03]
[1745583613294,14.2,155.33,155.32,0.03]
[1745583613697,37.53193891,155.33,155.32,0.03]
[1745583613892,14.2,155.35,155.32,0.03]
[1745583614098,23.33193891,155.33,155.32,0.03]
[1745583614688,23.47410048,155.33,155.32,0.03]
[1745583614891,42.12374934,155.33,155.32,0.03]
[1745583616816,68.12374934,155.33,155.32,0.03]
[1745583617195,49.47410048,155.33,155.32,0.03]
[1745583617630,26.0,155.29,155.26,0.04]
[1745583617816,41.98158777,155.27,155.26,0.04]
[1745583619321,0.14216157,155.28,155.26,0.04]
[1745583619524,23.47410048,155.27,155.26,0.04]
[1745583620221,42.12374934,155.27,155.26,0.04]
[1745583620717,42.12374934,155.27,155.2,0.8700288]
[1745583620718,23.47410048,155.27,155.2,0.8700288]
[1745583620925,23.33193891,155.25,155.2,24.20196771]
[1745583621423,23.33193891,155.25,155.2,23.70196771]
[1745583621722,23.33193891,155.24,155.2,23.70196771]
[1745583622099,23.33193891,155.24,155.19,6.44363678]
[1745583622423,23.33193891,155.25,155.2,23.33193891]
[1745583622624,23.33193891,155.26,155.22,23.33193891]
[1745583622924,23.33193891,155.26,155.21,23.33193891]
[1745583623114,14.2,155.27,155.24,23.33193891]
[1745583623321,14.2,155.27,155.23,23.33193891]
[1745583623705,37.53193891,155.27,155.22,23.33193891]
[1745583625028,23.33193891,155.26,155.22,23.33193891]
[1745583625234,23.33193891,155.26,155.21,6.44258866]
[1745583625235,23.33193891,155.23,155.18,23.33193891]
[1745583625402,23.33193891,155.22,155.17,29.77609811]
[1745583625605,14.2,155.21,155.17,29.77609811]
[1745583625912,14.2,155.21,155.18,23.33193891]
[1745583626301,14.2,155.21,155.17,23.33193891]
[1745583627029,14.2,155.21,155.16,6.47488361]
[1745583627030,37.53193891,155.21,155.16,23.36193891]
[1745583627224,37.53193891,155.21,155.17,23.33193891]
[1745583627225,14.2,155.21,155.17,23.33193891]
[1745583627398,14.2,155.21,155.18,23.33193891]
[1745583627802,14.2,155.21,155.17,23.33193891]
[1745583628034,37.53193891,155.21,155.16,23.36193891]
[1745583628211,14.2,155.21,155.16,23.36193891]
[1745583628534,37.53193891,155.21,155.17,23.33193891]
[1745583629406,14.2,155.21,155.18,23.33193891]
[1745583630412,14.2,155.21,155.18,29.77603669]
[1745583630612,37.53193891,155.21,155.17,6.44445204]
[1745583630919,14.2,155.21,155.18,23.33193891]
[1745583631348,14.2,155.21,155.17,6.44445204]
[1745583631509,14.2,155.21,155.18,22.33193891]
[1745583632347,14.2,155.21,155.18,28.77604451]
[1745583632850,14.2,155.21,155.18,6.4441056]
[1745583633009,37.53193891,155.21,155.17,29.77635132]
[1745583633514,37.53193891,155.21,155.16,29.80680657]
[1745583633951,23.33193891,155.2,155.16,29.80680657]
[1745583634150,23.33193891,155.19,155.16,0.03]
[1745583634520,23.33193891,155.2,155.16,6.47493738]
[1745583634843,14.2,155.21,155.16,23.36193891]
[1745583635036,23.33193891,155.2,155.16,0.03]
[1745583636429,23.33193891,155.17,155.16,0.03]
[1745583637158,23.47410048,155.17,155.16,0.03]
[1745583637321,42.12374934,155.17,155.16,0.03]
[1745583638155,23.47410048,155.17,155.16,0.03]
[1745583638343,23.33193891,155.17,155.16,0.03]
[1745583638729,23.33193891,155.18,155.16,0.03]
[1745583639042,49.33193891,155.19,155.16,0.03]
[1745583639255,23.33193891,155.18,155.16,0.03]
[1745583639742,23.33193891,155.19,155.16,0.03]
[1745583639920,14.22,155.2,155.16,23.36193891]
[1745583640123,14.16,155.23,155.18,23.33193891]
[1745583640378,37.49193891,155.23,155.18,29.77570002]
[1745583640654,23.33193891,155.21,155.17,6.44448004]
[1745583640854,23.33193891,155.2,155.16,29.8068804]
[1745583641768,23.33193891,155.19,155.16,0.03]
[1745583641954,23.33193891,155.18,155.16,0.03]
[1745583642648,37.49193891,155.17,155.16,0.03]
[1745583642852,56.28374934,155.17,155.16,0.03]
[1745583643058,37.63410048,155.17,155.16,0.03]
[1745583643749,56.28374934,155.17,155.16,0.03]
[1745583646384,82.8,155.24,155.16,0.03]
[1745583646670,23.33193891,155.18,155.16,0.03]
[1745583646863,14.16,155.17,155.16,0.03]
[1745583648141,23.33193891,155.21,155.16,23.36193891]
[1745583648458,37.49193891,155.2,155.16,23.36193891]
[1745583648770,37.49193891,155.2,155.16,0.03]
[1745583649552,23.33193891,155.18,155.16,0.03]
[1745583650650,14.16,155.2,155.16,0.03]
[1745583650651,23.33193891,155.17,155.16,0.03]
[1745583651169,42.12374934,155.17,155.16,0.03]
[1745583651468,48.31014934,155.17,155.16,0.03]
[1745583652476,48.31014934,155.17,155.09,0.03]
[1745583652658,23.33193891,155.12,155.09,0.03]
[1745583652853,14.16,155.11,155.09,0.03]
[1745583653045,14.16,155.11,155.1,23.33193891]
[1745583653243,201.1,155.18,155.1,23.33193891]
[1745583653244,23.33193891,155.16,155.1,23.33193891]
[1745583653586,14.16,155.15,155.12,23.33193891]
[1745583654358,14.16,155.15,155.11,23.33193891]
[1745583654759,14.16,155.15,155.11,29.77861869]
[1745583656065,14.16,155.15,155.09,23.36193891]
[1745583656490,23.33193891,155.13,155.09,23.36193891]
[1745583657069,23.33193891,155.12,155.09,0.03]
[1745583657276,14.16,155.15,155.09,23.36193891]
[1745583657482,23.33193891,155.13,155.09,23.36193891]
[1745583658056,23.33193891,155.13,155.1,6.44745325]
[1745583658776,14.16,155.15,155.11,23.33193891]
[1745583660356,37.49193891,155.15,155.11,29.77864043]
[1745583660876,23.33193891,155.13,155.1,6.44733325]
[1745583661078,23.33193891,155.13,155.09,6.47768918]
[1745583661264,14.16,155.15,155.09,0.03]
[1745583661265,23.33193891,155.11,155.09,0.03]
[1745583661673,14.16,155.13,155.09,29.809789]
[1745583661984,37.49193891,155.13,155.09,29.809789]
[1745583662665,37.49193891,155.13,155.09,6.47785009]
[1745583662857,23.33193891,155.12,155.09,6.47785009]
[1745583663375,37.49193891,155.13,155.09,6.47785009]
[1745583663749,26.0,155.17,155.1,23.33193891]
[1745583663958,14.16,155.16,155.1,23.33193891]
[1745583664155,201.1,155.18,155.13,23.33193891]
[1745583664379,6.1482,155.25,155.17,23.33193891]
[1745583664684,23.33193891,155.23,155.19,23.33193891]
[1745583664878,33.29572557,155.22,155.18,29.7760683]
[1745583665194,9.46378666,155.22,155.18,29.7760683]
[1745583665557,23.33193891,155.23,155.18,29.7760683]
[1745583665753,23.33193891,155.22,155.15,16.11343387]
[1745583665977,23.33193891,155.22,155.18,23.33193891]
[1745583666290,23.33193891,155.23,155.18,23.33193891]
[1745583666466,14.16,155.24,155.17,23.33193891]
[1745583666667,23.33193891,155.22,155.17,23.33193891]
[1745583666860,23.33193891,155.22,155.15,22.55880931]
[1745583666861,23.33193891,155.21,155.16,23.33193891]
[1745583667390,23.33193891,155.21,155.17,23.33193891]
[1745583667680,23.33193891,155.2,155.16,23.33193891]
[1745583667899,23.33193891,155.2,155.17,6.44454469]
[1745583668891,23.33193891,155.22,155.17,29.7764836]
[1745583669094,14.16,155.24,155.17,29.7764836]
[1745583669274,23.33193891,155.22,155.17,29.7764836]
[1745583669473,23.33193891,155.23,155.18,1.28853887]
[1745583669675,23.33193891,155.23,155.19,23.33193891]
[1745583670074,0.063,155.25,155.21,23.33193891]
[1745583670683,0.063,155.25,155.22,23.33193891]
[1745583670862,0.063,155.25,155.23,23.33193891]
[1745583671068,0.063,155.25,155.22,49.33193891]
[1745583671561,0.063,155.25,155.23,23.33193891]
[1745583671761,0.063,155.25,155.22,23.33193891]
[1745583672167,0.063,155.25,155.24,23.33193891]
[1745583672373,0.063,155.25,155.24,43.26957213]
[1745583672673,0.063,155.25,155.24,43.4117337]
[1745583673090,0.063,155.28,155.25,0.14216157]
[1745583673393,0.063,155.28,155.27,23.33193891]
[1745583674368,0.063,155.28,155.27,29.77233306]
[1745583675963,0.063,155.28,155.27,48.42198192]
[1745583677364,0.063,155.28,155.27,48.56414349]
[1745583678090,0.063,155.28,155.27,48.42198192]
[1745583678295,23.39493891,155.28,155.26,6.44079123]
[1745583678593,23.33193891,155.27,155.23,6.44205372]
[1745583678914,23.33193891,155.24,155.19,6.44371415]
[1745583679114,23.33193891,155.23,155.19,6.44371415]
[1745583679481,23.33193891,155.22,155.19,6.44371415]
[1745583680173,23.33193891,155.24,155.19,29.77565306]
[1745583680397,23.33193891,155.25,155.21,23.33193891]
[1745583680579,23.33193891,155.25,155.22,6.44246875]
[1745583682201,23.33193891,155.25,155.21,23.33193891]
[1745583682387,23.33193891,155.22,155.17,25.09419355]
[1745583682697,23.33193891,155.23,155.19,23.33193891]
[1745583682912,23.33193891,155.23,155.18,23.33193891]
[1745583683114,23.33193891,155.24,155.19,23.33193891]
[1745583683482,37.37193891,155.25,155.2,23.33193891]
[1745583683704,14.04,155.25,155.21,23.33193891]
[1745583684077,37.37193891,155.25,155.21,23.33193891]
[1745583684277,37.37193891,155.25,155.2,23.33193891]
[1745583684478,23.33193891,155.23,155.18,24.62030668]
[1745583684705,23.33193891,155.23,155.19,6.44371415]
[1745583685011,23.33193891,155.23,155.19,29.77565306]
[1745583685178,23.33193891,155.24,155.2,23.33193891]
[1745583686003,23.33193891,155.23,155.19,6.44371415]
[1745583686180,23.33193891,155.23,155.19,29.77565306]
[1745583686506,37.37193891,155.25,155.21,23.33193891]
[1745583686681,14.04,155.25,155.22,29.77440766]
[1745583686882,37.37193891,155.25,155.22,6.44246875]
[1745583688079,23.33193891,155.24,155.2,6.44329896]
[1745583688493,23.33193891,155.23,155.2,6.44329896]
[1745583689001,23.33193891,155.22,155.2,6.44329896]
[1745583689400,23.33193891,155.23,155.19,6.44358897]
[1745583689582,23.33193891,155.22,155.19,6.44358897]
[1745583689789,23.33193891,155.21,155.17,25.09405335]
[1745583690013,23.33193891,155.2,155.16,6.44484795]
[1745583690390,23.33193891,155.2,155.16,29.77678686]
[1745583690707,23.33193891,155.21,155.16,29.77678686]
[1745583690889,23.33193891,155.21,155.17,23.33193891]
[1745583691089,23.33193891,155.21,155.16,29.77678686]
[1745583692013,23.33193891,155.21,155.17,23.33193891]
[1745583692485,23.33193891,155.22,155.17,23.33193891]
[1745583692686,23.33193891,155.22,155.18,6.44412939]
[1745583693093,23.33193891,155.21,155.17,6.44437093]
[1745583693987,23.33193891,155.22,155.17,29.77630984]
[1745583694394,23.33193891,155.21,155.17,6.44437093]
[1745583695500,23.33193891,155.22,155.17,29.77630984]
[1745583697421,14.04,155.25,155.21,14.61484386]
[1745583697807,28.65484386,155.25,155.2,15.90299994]
[1745583698408,14.61484386,155.24,155.19,14.61484386]
[1745583699402,23.37873136,155.24,155.19,6.44371415]
[1745583699596,23.37873136,155.23,155.19,6.44371415]
[1745583699798,23.37873136,155.22,155.19,6.44371415]
[1745583700028,23.37873136,155.22,155.18,6.44397968]
[1745583700441,14.04,155.25,155.21,23.37873136]
[1745583700623,23.37873136,155.24,155.19,43.31689139]
[1745583700821,23.37873136,155.21,155.17,6.44437579]
[1745583701523,23.37873136,155.22,155.17,29.82310715]
[1745583702116,14.04,155.25,155.17,6.44437579]
[1745583702117,23.37873136,155.2,155.17,6.44437579]
[1745583702524,23.37873136,155.19,155.14,29.82452225]
[1745583703029,23.37873136,155.19,155.14,6.44579089]
[1745583703217,23.37873136,155.18,155.14,6.44579089]
[1745583703834,23.37873136,155.19,155.14,29.82452225]
[1745583704229,23.37873136,155.2,155.15,23.37873136]
[1745583704541,23.37873136,155.19,155.14,45.93899949]
[1745583705402,23.37873136,155.19,155.14,22.56026813]
[1745583705632,23.37873136,155.17,155.14,6.44579089]
[1745583705936,23.37873136,155.16,155.14,6.44579089]
[1745583706639,23.37873136,155.16,155.12,6.4762655]
[1745583708743,23.37873136,155.15,155.12,6.4762655]
[1745583709936,23.37873136,155.14,155.12,0.03]
[1745583710436,23.37873136,155.15,155.12,0.03]
[1745583713250,14.04,155.19,155.12,0.03]
[1745583713427,23.37873136,155.15,155.12,0.03]
[1745583713943,23.37873136,155.14,155.12,0.03]
[1745583715038,14.18216157,155.19,155.12,0.03]
[1745583715039,23.37873136,155.13,155.12,0.03]
[1745583716115,37.41873136,155.13,155.12,0.03]
[1745583716853,37.56089293,155.13,155.12,0.03]
[1745583717049,79.58927315,155.13,155.12,0.03]
[1745583717362,0.14216157,155.11,155.09,0.03]
[1745583717532,23.37873136,155.1,155.09,0.03]
[1745583718053,23.52089293,155.1,155.09,0.03]
[1745583718372,42.17054179,155.1,155.09,0.03]
[1745583718549,49.52089293,155.1,155.09,0.03]
[1745583719573,14.04,155.13,155.09,0.03]
[1745583719736,14.6442431,155.12,155.09,0.03]
[1745583720068,14.04,155.13,155.09,0.03]
[1745583720069,28.6842431,155.13,155.09,0.03]
[1745583720265,14.6442431,155.12,155.09,0.03]
[1745583720550,14.04,155.13,155.09,14.6742431]
[1745583720771,14.04,155.13,155.1,6.44745325]
[1745583720936,14.04,155.13,155.1,21.09169635]
[1745583721138,6.2668,155.18,155.11,14.6442431]
[1745583721139,14.04,155.17,155.11,14.6442431]
[1745583721342,14.6442431,155.16,155.11,14.6442431]
[1745583721539,14.6442431,155.15,155.11,14.6442431]
[1745583721956,14.6442431,155.14,155.1,21.09169635]
[1745583722142,14.6442431,155.15,155.11,14.6442431]
[1745583722655,14.6442431,155.16,155.11,14.6442431]
[1745583723046,14.6442431,155.16,155.12,6.44662197]
[1745583723353,14.6442431,155.14,155.12,6.44662197]
[1745583723559,14.6442431,155.15,155.12,6.44662197]
[1745583723727,1.5365,155.2,155.13,14.6442431]
[1745583723931,14.04,155.2,155.16,14.6442431]
[1745583724244,28.6842431,155.2,155.16,14.6442431]
[1745583724452,14.6442431,155.19,155.15,14.6442431]
[1745583725232,14.6442431,155.19,155.16,6.44496004]
[1745583725436,14.04,155.2,155.17,14.6442431]
[1745583726052,14.04,155.2,155.18,14.6442431]
[1745583726254,28.6842431,155.2,155.16,6.44496004]
[1745583726468,14.6442431,155.19,155.16,6.44496004]
[1745583726635,14.04,155.2,155.16,6.44496004]
[1745583726966,14.6442431,155.18,155.15,6.44527907]
[1745583727127,14.04,155.2,155.15,6.44527907]
[1745583727128,14.6442431,155.17,155.15,6.44527907]
[1745583727456,14.6442431,155.17,155.13,14.6442431]
[1745583727457,14.6442431,155.16,155.1,6.44745325]
[1745583727664,26.0,155.18,155.09,6.47775109]
[1745583727665,14.6442431,155.11,155.09,6.47775109]
[1745583728454,6.0236,155.18,155.1,14.6442431]
[1745583728654,14.6442431,155.16,155.12,14.6442431]
[1745583729032,14.6442431,155.16,155.11,14.6442431]
[1745583729353,1.5117,155.2,155.14,6.44579089]
[1745583729544,14.6442431,155.17,155.14,6.44579089]
[1745583730443,14.6442431,155.18,155.14,21.09003399]
[1745583730845,14.7072431,155.19,155.14,21.09003399]
[1745583731232,0.063,155.19,155.15,23.39041081]
[1745583731438,23.45341081,155.19,155.14,39.50488805]
[1745583732142,0.063,155.19,155.15,23.39041081]
[1745583732462,0.063,155.19,155.17,23.39041081]
[1745583733660,0.063,155.19,155.18,6.44412939]
[1745583733867,0.063,155.19,155.17,6.44443747]
[1745583734350,0.063,155.19,155.17,29.83484828]
[1745583734547,0.063,155.19,155.18,23.39041081]
[1745583735636,0.063,155.19,155.18,29.8345402]
[1745583737269,10.32081433,155.26,155.19,18.64964886]
[1745583737562,33.71122514,155.26,155.21,23.39041081]
[1745583737867,23.39041081,155.26,155.23,6.44205372]
[1745583738045,23.39041081,155.24,155.18,6.44412939]
[1745583738247,23.39041081,155.21,155.18,6.44412939]
[1745583739167,23.39041081,155.2,155.18,6.44412939]
[1745583739465,23.39041081,155.21,155.18,6.44412939]
[1745583739973,23.39041081,155.21,155.17,45.94631723]
[1745583740345,23.39041081,155.19,155.17,6.44454469]
[1745583740543,23.39041081,155.18,155.17,6.44454469]
[1745583741165,26.0,155.24,155.17,29.8349555]
[1745583741346,20.79126157,155.27,155.21,23.39041081]
[1745583741347,23.39041081,155.25,155.21,23.39041081]
[1745583741538,23.39041081,155.26,155.21,23.39041081]
[1745583741739,23.39041081,155.25,155.21,23.39041081]
[1745583741957,23.39041081,155.25,155.22,6.44246875]
[1745583743249,23.39041081,155.24,155.22,6.44246875]
[1745583743569,23.39041081,155.23,155.17,16.11086051]
[1745583743751,23.39041081,155.19,155.18,6.44412939]
[1745583743953,23.39041081,155.19,155.14,39.504205]
[1745583744160,23.39041081,155.18,155.14,39.504205]
[1745583744475,23.39041081,155.19,155.15,6.44537544]
[1745583745140,23.39041081,155.2,155.16,23.39041081]
[1745583745342,26.0,155.24,155.15,22.55881404]
[1745583745343,23.39041081,155.19,155.15,22.55881404]
[1745583746651,23.39041081,155.19,155.15,45.94922485]
[1745583747593,23.39041081,155.19,155.15,22.55881404]
[1745583749454,23.39041081,155.2,155.15,45.94922485]
[1745583749960,23.39041081,155.19,155.15,22.55881404]
[1745583751066,23.39041081,155.18,155.15,22.55881404]
[1745583751266,14.62181885,155.18,155.15,22.55881404]
[1745583751953,14.62181885,155.19,155.15,22.55881404]
[1745583752157,14.62181885,155.19,155.15,37.18063289]
[1745583753170,14.62181885,155.19,155.15,22.55881404]
[1745583753358,14.04,155.24,155.15,37.18063289]
[1745583753681,28.66181885,155.24,155.19,14.62181885]
[1745583753851,14.62181885,155.22,155.17,14.62181885]
[1745583754483,14.04,155.24,155.16,14.62181885]
[1745583754484,14.62181885,155.21,155.16,14.62181885]
[1745583754692,14.04,155.24,155.15,23.84757125]
[1745583754693,14.62181885,155.22,155.18,14.62181885]
[1745583754868,28.66181885,155.24,155.19,14.62181885]
[1745583755071,28.66181885,155.24,155.2,14.62181885]
[1745583755269,14.04,155.24,155.21,6.44288383]
[1745583755485,14.62181885,155.25,155.21,6.44288383]
[1745583755863,14.62181885,155.24,155.21,6.44288383]
[1745583756176,14.62181885,155.25,155.21,6.44288383]
[1745583756575,14.62181885,155.25,155.21,37.17191226]
[1745583757184,14.68481885,155.26,155.21,37.17191226]
[1745583757397,14.68481885,155.26,155.22,14.62181885]
[1745583757888,14.68481885,155.26,155.21,37.17191226]
[1745583758285,0.063,155.26,155.22,14.62181885]
[1745583758587,0.063,155.26,155.25,14.62181885]
[1745583758785,0.063,155.26,155.25,34.55934363]
[1745583759596,0.063,155.26,155.25,41.00056746]
[1745583759895,0.063,155.26,155.25,39.71269154]
[1745583761192,0.063,155.26,155.25,21.06304268]
[1745583761564,0.063,155.26,155.25,22.35086015]
[1745583761773,0.063,155.26,155.25,21.06304268]
[1745583762172,0.063,155.28,155.25,57.10361154]
[1745583762373,0.063,155.28,155.27,14.62181885]
[1745583763189,0.063,155.28,155.27,21.062213]
[1745583764796,0.063,155.28,155.27,6.44039415]
[1745583765597,0.063,155.28,155.27,21.062213]
[1745583767371,0.063,155.28,155.27,6.44039415]
[1745583768179,0.063,155.28,155.27,21.062213]
[1745583769693,0.063,155.28,155.27,6.44039415]
[1745583774083,0.063,155.28,155.27,21.062213]
[1745583774486,0.063,155.32,155.28,18.64964886]
[1745583774678,0.063,155.32,155.28,33.27146771]
[1745583774877,14.68481885,155.32,155.28,33.27146771]
[1745583775098,0.063,155.32,155.29,14.62181885]
[1745583776400,0.063,155.32,155.3,6.43915003]
[1745583777301,0.063,155.32,155.3,21.06096888]
[1745583777800,0.063,155.32,155.31,14.62181885]
[1745583778903,0.063,155.32,155.3,21.06096888]
[1745583779105,14.68481885,155.32,155.3,6.43915003]
[1745583779495,0.063,155.32,155.3,6.43915003]
[1745583780285,0.063,155.32,155.29,30.7206654]
[1745583780286,14.62181885,155.31,155.23,25.09170258]
[1745583780502,0.063,155.32,155.26,14.62181885]
[1745583780503,14.62181885,155.3,155.26,14.62181885]
[1745583780832,14.62181885,155.31,155.27,14.62181885]
[1745583780991,14.62181885,155.31,155.25,18.64964886]
[1745583780992,0.063,155.32,155.3,14.62181885]
[1745583781189,0.063,155.32,155.29,6.43956468]
[1745583781394,0.063,155.32,155.31,14.62181885]
[1745583782389,0.063,155.32,155.3,14.62181885]
[1745583782693,0.063,155.32,155.31,14.62181885]
[1745583782893,0.063,155.32,155.31,39.71020314]
[1745583783107,0.063,155.32,155.31,39.85236471]
[1745583784012,0.063,155.32,155.3,1.28745963]
[1745583784217,1.5757,155.29,155.09,81.23]
[1745583784407,1.5757,155.29,155.12,14.62181885]
[1745583784408,21.00201885,155.28,155.12,14.62181885]
[1745583784712,21.00201885,155.28,155.19,6.47334302]
[1745583784713,0.14216157,155.26,155.19,6.47334302]
[1745583784916,27.5034,155.24,155.19,0.03]
[1745583785120,40.62181885,155.2,155.19,1.3187003]
[1745583785305,61.8315377,155.2,155.19,0.03]
[1745583785616,35.8315377,155.2,155.19,0.03]
[1745583785803,26.0,155.17,155.09,18.82181043]
[1745583786007,14.62181885,155.13,155.09,0.03]
[1745583786191,0.14216157,155.18,155.09,6.47777662]
[1745583786392,1.38763063,155.17,155.09,22.59744906]
[1745583786609,90.24086318,155.26,155.18,26.0]
[1745583786610,82.8,155.26,155.18,26.0]
[1745583786810,31.21441126,155.32,155.25,0.83]
[1745583787017,31.21441126,155.32,155.31,14.62181885]
[1745583787018,1e-08,155.32,155.31,14.62181885]
[1745583787215,19.97057334,155.34,155.33,26.0]
[1745583787517,19.97057334,155.34,155.29,14.02]
[1745583787715,19.97057334,155.34,155.33,42.13460312]